bitfinex-derivatives/quotes_SOLF0:USTF0_20220104
["timestamp","ask_amount","ask_price","bid_price","bid_amount"]
[1641322372997,33.26579,167.21,167.17,33.65286564]
[1641322373400,5.601,167.21,167.17,33.65286564]
[1641322373900,21.30909,167.23,167.17,33.65286564]
[1641322374097,6.364,167.21,167.17,33.65286564]
[1641322375101,6.364,167.21,167.12,50.40797113]
[1641322375102,40.01686564,167.21,167.08,63.143]
[1641322375302,40.01686564,167.21,167.08,60.143]
[1641322376506,40.01686564,167.21,167.12,27.66479]
[1641322377105,40.01686564,167.21,167.09,27.66479]
[1641322377507,33.65286564,167.2,167.09,27.66479]
[1641322377906,33.65286564,167.2,167.05,60.1004]
[1641322378107,33.65286564,167.2,167.04,33.65286564]
[1641322378409,27.66479,167.14,167.05,27.66479]
[1641322378611,33.90279,167.14,167.04,33.65286564]
[1641322379207,13.62859372,167.13,167.06,1.260673]
[1641322379407,13.62859372,167.13,167.06,1e-08]
[1641322380209,16.62859372,167.13,167.06,1e-08]
[1641322380410,27.66479,167.07,166.99,33.65286564]
[1641322380809,27.66479,167.07,166.94,33.65286564]
[1641322381009,27.66479,167.07,166.94,36.65286564]
[1641322381260,4.784,167.08,166.95,3.0]
[1641322381418,36.65286564,167.1,166.94,36.65286564]
[1641322381615,6.585,167.08,166.94,33.65286564]
[1641322381915,6.585,167.08,166.92,19.27688465]
[1641322381916,44.3253805,167.06,166.92,3.0]
[1641322382115,44.3253805,167.06,166.91,36.65286564]
[1641322382515,44.3253805,167.06,166.98,27.66479]
[1641322383416,15.17244229,167.07,166.98,27.66479]
[1641322383816,50.40797113,167.11,166.98,27.66479]
[1641322384017,33.74678753,167.13,166.98,92.32479]
[1641322384217,33.74678753,167.13,166.98,95.32479]
[1641322384420,33.74678753,167.13,167.07,27.66479]
[1641322384618,33.74678753,167.13,167.04,27.66479]
[1641322384817,3.0,167.14,167.04,27.66479]
[1641322385218,27.66479,167.15,167.04,27.66479]
[1641322385919,27.66479,167.15,166.98,62.0725]
[1641322386121,63.6214,167.14,166.98,62.0725]
[1641322386319,27.66479,167.15,166.98,65.0725]
[1641322386520,27.66479,167.15,167.0,30.66479]
[1641322386719,27.66479,167.15,167.0,27.66479]
[1641322387820,3.0,167.14,167.0,27.66479]
[1641322388020,64.4056,167.14,166.98,62.0725]
[1641322388220,27.66479,167.15,166.98,62.0725]
[1641322388422,18.17244229,167.17,166.98,62.0725]
[1641322388423,50.40797113,167.14,167.07,27.66479]
[1641322388625,50.40797113,167.14,167.07,33.14579]
[1641322389222,15.17244229,167.17,167.07,33.14579]
[1641322389622,15.17244229,167.17,167.07,36.14579]
[1641322389822,15.17244229,167.17,167.07,33.14579]
[1641322390022,15.17244229,167.17,167.07,5.481]
[1641322390224,15.17244229,167.19,167.07,5.481]
[1641322390422,27.66479,167.18,167.07,33.14579]
[1641322391128,15.17244229,167.19,167.07,33.14579]
[1641322391335,15.17244229,167.19,167.1,3.0]
[1641322391524,83.94871682,167.28,167.11,3.0]
[1641322391724,50.40797113,167.24,167.11,5.317]
[1641322391924,50.40797113,167.24,167.11,8.317]
[1641322392123,50.40797113,167.24,167.11,5.317]
[1641322392333,50.40797113,167.24,167.11,8.317]
[1641322392525,50.40797113,167.24,167.17,27.66479]
[1641322392724,78.07276113,167.28,167.17,32.98579]
[1641322393126,50.40797113,167.28,167.17,32.98579]
[1641322393626,50.40797113,167.28,167.21,3.0]
[1641322393830,64.84404094,167.3,167.21,4.993]
[1641322394027,64.84404094,167.3,167.21,7.993]
[1641322394228,64.84404094,167.3,167.21,4.993]
[1641322394229,31.63684094,167.3,167.21,4.993]
[1641322394430,31.63684094,167.3,167.28,27.66479]
[1641322394629,83.94871682,167.35,167.28,34.14679]
[1641322394829,27.66479,167.36,167.28,6.482]
[1641322395030,123.4702,167.42,167.28,6.482]
[1641322396131,18.7518181,167.41,167.28,6.482]
[1641322396530,27.66479,167.38,167.29,27.66479]
[1641322396730,27.66479,167.38,167.28,6.482]
[1641322396931,27.66479,167.38,167.25,27.66479]
[1641322397331,27.66479,167.38,167.21,3.0]
[1641322397531,3.0,167.37,167.21,3.0]
[1641322397731,27.66479,167.38,167.21,3.0]
[1641322397931,3.0,167.36,167.22,4.21313848]
[1641322398132,27.66479,167.38,167.22,4.21313848]
[1641322398337,3.0,167.33,167.22,4.21313848]
[1641322398536,27.66479,167.23,167.22,4.21313848]
[1641322398834,27.66479,167.25,167.22,4.21313848]
[1641322399033,64.4623,167.32,167.22,4.21313848]
[1641322399237,3.0,167.35,167.22,4.21313848]
[1641322399434,83.94871682,167.35,167.21,3.0]
[1641322399635,83.94871682,167.35,167.22,3.0]
[1641322399834,83.94871682,167.35,167.19,8.246]
[1641322400035,83.94871682,167.35,167.25,3.0]
[1641322400238,146.24151682,167.39,167.26,3.0]
[1641322400436,27.66479,167.38,167.3,27.66479]
[1641322400637,27.66479,167.38,167.3,33.11179]
[1641322401134,27.66479,167.38,167.3,5.447]
[1641322402335,12.63800715,167.31,167.3,5.447]
[1641322402536,12.63800715,167.31,167.3,8.447]
[1641322402738,27.66479,167.38,167.3,5.447]
[1641322402936,27.66479,167.38,167.29,27.66479]
[1641322403337,27.66479,167.38,167.31,3.0]
[1641322403537,27.66479,167.38,167.31,6.42]
[1641322403939,27.66479,167.38,167.31,9.42]
[1641322404338,27.66479,167.38,167.32,3.0]
[1641322404339,8.90665665,167.37,167.32,3.0]
[1641322404538,8.90665665,167.37,167.31,10.63313848]
[1641322405339,8.90665665,167.37,167.31,6.42]
[1641322405740,8.90665665,167.37,167.32,3.0]
[1641322406341,8.90665665,167.37,167.33,3.0]
[1641322406542,8.90665665,167.37,167.36,27.66479]
[1641322406743,50.54294538,167.44,167.36,32.04079]
[1641322406940,50.54294538,167.44,167.39,3.0]
[1641322407141,30.54294538,167.44,167.39,3.0]
[1641322407440,30.54294538,167.52,167.39,7.21313848]
[1641322407641,30.54294538,167.52,167.43,3.0]
[1641322407841,30.54294538,167.52,167.43,6.405]
[1641322408240,3.0,167.56,167.43,6.405]
[1641322408448,27.66479,167.52,167.44,4.21313848]
[1641322409443,27.66479,167.54,167.49,3.0]
[1641322409644,83.94871682,167.62,167.49,7.8]
[1641322410248,3.0,167.63,167.49,4.8]
[1641322410249,11.7939257,167.53,167.49,4.8]
[1641322410743,11.7939257,167.53,167.45,27.66479]
[1641322411045,27.66479,167.56,167.45,27.66479]
[1641322411245,72.2296257,167.58,167.46,3.0]
[1641322411444,72.2296257,167.58,167.47,3.0]
[1641322411649,72.2296257,167.58,167.48,3.0]
[1641322411843,11.7939257,167.58,167.47,3.0]
[1641322412053,11.7939257,167.57,167.47,3.0]
[1641322412243,11.7939257,167.57,167.48,3.0]
[1641322412446,11.7939257,167.57,167.5,3.0]
[1641322412650,11.7939257,167.57,167.54,27.66479]
[1641322412844,11.7939257,167.57,167.54,31.88079]
[1641322413044,27.66479,167.63,167.54,31.88079]
[1641322413045,11.7939257,167.61,167.54,31.88079]
[1641322413245,11.7939257,167.61,167.54,4.216]
[1641322414254,27.66479,167.63,167.55,3.0]
[1641322414447,11.7939257,167.64,167.54,4.216]
[1641322414651,11.7939257,167.64,167.59,30.66479]
[1641322414847,11.7939257,167.64,167.59,33.20179]
[1641322415749,11.7939257,167.66,167.59,5.537]
[1641322416549,27.66479,167.63,167.59,8.537]
[1641322416749,11.7939257,167.66,167.6,3.0]
[1641322416947,4.7939257,167.66,167.59,5.537]
[1641322417150,83.94871682,167.73,167.59,5.537]
[1641322417348,83.94871682,167.75,167.62,3.0]
[1641322417548,83.94871682,167.75,167.59,5.537]
[1641322417549,83.94871682,167.75,167.65,3.0]
[1641322417749,20.18589957,167.74,167.67,3.0]
[1641322417949,20.18589957,167.74,167.68,3.0]
[1641322418149,20.18589957,167.74,167.67,3.0]
[1641322418349,50.46019701,167.78,167.68,3.0]
[1641322418550,78.12498701,167.78,167.69,27.66479]
[1641322418749,78.12498701,167.78,167.65,4.21313848]
[1641322418951,81.12498701,167.78,167.65,4.21313848]
[1641322419353,20.18234885,167.77,167.68,4.21313848]
[1641322420454,1.56264288,167.76,167.67,4.21313848]
[1641322421053,20.18234885,167.75,167.67,4.21313848]
[1641322422055,3.0,167.74,167.67,4.21313848]
[1641322422254,1.56264288,167.74,167.65,6.85515284]
[1641322422454,20.18234885,167.73,167.65,6.85515284]
[1641322422654,27.66479,167.71,167.65,6.85515284]
[1641322422854,27.66479,167.71,167.63,4.21313848]
[1641322423255,50.46019701,167.76,167.7,3.0]
[1641322423556,37.46019701,167.76,167.75,3.0]
[1641322423754,2.92031022,167.76,167.75,9.72]
[1641322423956,21.60399582,167.89,167.75,9.72]
[1641322424155,21.60399582,167.89,167.8,7.0]
[1641322424557,21.60399582,167.89,167.8,62.32958]
[1641322424757,27.66479,167.93,167.8,62.32958]
[1641322424958,27.66479,167.93,167.84,3.0]
[1641322425157,27.66479,167.93,167.86,3.0]
[1641322425358,83.94871682,168.03,167.84,4.934]
[1641322425558,83.94871682,168.03,167.87,3.0]
[1641322425757,83.94871682,168.03,167.88,3.0]
[1641322425958,20.15707802,168.02,167.88,7.739]
[1641322426158,20.15707802,168.02,167.88,4.739]
[1641322426357,23.15707802,168.03,167.88,4.739]
[1641322426559,27.66479,167.98,167.88,4.739]
[1641322427358,26.811815,167.97,167.89,4.1993919]
[1641322427559,33.59513518,167.96,167.89,4.1993919]
[1641322427758,53.7522132,167.96,167.89,4.1993919]
[1641322428159,20.15707802,167.95,167.89,4.1993919]
[1641322428458,20.15707802,167.95,167.88,8.9383919]
[1641322429359,20.15707802,167.95,167.9,4.1993919]
[1641322429560,6.65473698,167.97,167.9,4.1993919]
[1641322429962,20.15572844,167.96,167.9,4.1993919]
[1641322430359,20.15572844,167.96,167.91,4.1993919]
[1641322430562,27.66479,167.95,167.91,4.1993919]
[1641322430958,20.15572844,167.94,167.91,4.1993919]
[1641322431159,20.15572844,167.94,167.9,4.1993919]
[1641322431860,3.0,167.91,167.86,10.14278892]
[1641322432058,3.0,167.9,167.84,10.14278892]
[1641322432260,3.0,167.85,167.84,10.14278892]
[1641322432459,3.0,167.85,167.82,33.59513518]
[1641322432659,55.32958,167.83,167.82,33.59513518]
[1641322432860,20.15572844,167.84,167.82,33.59513518]
[1641322433063,20.15572844,167.84,167.82,38.10413518]
[1641322433262,20.15572844,167.84,167.82,4.509]
[1641322433463,32.76073704,167.87,167.82,4.509]
[1641322433663,32.76073704,167.87,167.86,6.72267125]
[1641322433862,12.6050086,167.87,167.86,6.8]
[1641322434662,12.6050086,167.9,167.86,6.8]
[1641322435263,20.16508549,167.89,167.82,17.1140086]
[1641322436269,20.16508549,167.89,167.83,12.6050086]
[1641322436768,20.16508549,167.9,167.86,27.66479]
[1641322436966,20.16508549,167.9,167.86,6.662]
[1641322437166,20.16508549,167.9,167.86,19.2670086]
[1641322437567,23.16508549,167.9,167.86,19.2670086]
[1641322437768,20.16508549,167.9,167.86,19.2670086]
[1641322437970,23.16508549,167.9,167.86,6.662]
[1641322438268,20.16508549,167.89,167.83,12.6050086]
[1641322438470,23.16508549,167.89,167.83,12.6050086]
[1641322438668,27.66479,167.86,167.83,12.6050086]
[1641322439268,20.16508549,167.88,167.83,12.6050086]
[1641322439469,12.6050086,167.91,167.83,19.2860086]
[1641322439670,12.6050086,167.9,167.83,6.681]
[1641322439970,32.76930685,167.9,167.83,6.681]
[1641322440368,12.6050086,167.9,167.83,6.681]
[1641322440569,35.76930685,167.92,167.84,12.6050086]
[1641322440969,20.16429825,167.89,167.84,12.6050086]
[1641322441371,20.16429825,167.91,167.84,12.6050086]
[1641322441570,20.16429825,167.91,167.86,3.0]
[1641322441771,12.6050086,167.86,167.83,6.681]
[1641322441972,8.7474086,167.86,167.85,3.0]
[1641322442170,33.59513518,167.9,167.83,6.681]
[1641322442370,33.59513518,167.9,167.84,3.0]
[1641322442573,33.59513518,167.9,167.83,9.681]
[1641322442772,27.66479,167.96,167.86,27.66479]
[1641322442973,30.66479,167.96,167.86,27.66479]
[1641322443173,30.66479,167.96,167.83,6.681]
[1641322443174,20.15938058,167.95,167.83,6.681]
[1641322443573,23.15938058,167.95,167.83,6.681]
[1641322443773,20.15938058,167.95,167.83,6.681]
[1641322443974,27.66479,167.99,167.83,9.681]
[1641322443975,20.15938058,167.94,167.83,9.681]
[1641322444275,20.15938058,167.94,167.84,33.5985353]
[1641322444473,23.15938058,167.98,167.84,33.5985353]
[1641322444673,27.66479,167.94,167.85,27.66479]
[1641322445076,27.66479,167.94,167.84,33.5985353]
[1641322445275,20.15938058,167.93,167.84,33.5985353]
[1641322445677,23.15938058,167.93,167.85,33.5985353]
[1641322445876,20.15938058,167.93,167.85,33.5985353]
[1641322446277,3.0,167.9,167.82,33.5985353]
[1641322446575,20.15938058,167.93,167.82,33.5985353]
[1641322446775,27.66479,167.86,167.82,33.5985353]
[1641322446975,3.0,167.83,167.82,33.5985353]
[1641322447177,3.0,167.83,167.79,3.53e-05]
[1641322447376,3.0,167.81,167.79,3.53e-05]
[1641322447577,27.66479,167.86,167.79,3.53e-05]
[1641322447874,27.66479,167.86,167.74,50.41046063]
[1641322447875,30.66479,167.86,167.74,50.41046063]
[1641322448075,20.1701255,167.85,167.73,50.41046063]
[1641322448475,20.1701255,167.85,167.76,3.0]
[1641322448676,20.1701255,167.85,167.79,27.66479]
[1641322449075,20.1701255,167.9,167.79,27.66479]
[1641322450379,27.66479,167.91,167.79,78.07525063]
[1641322450683,30.66479,167.91,167.82,27.66479]
[1641322450881,20.16429465,167.9,167.82,33.27579]
[1641322451282,3.0,167.93,167.82,33.27579]
[1641322451683,20.162122,167.92,167.82,33.27579]
[1641322451884,3.0,167.91,167.79,30.66479]
[1641322452183,20.162122,167.92,167.8,3.0]
[1641322452384,20.162122,167.92,167.85,83.94871682]
[1641322452586,3.0,167.86,167.82,16.06148441]
[1641322452886,55.32958,167.83,167.82,16.06148441]
[1641322453082,58.32958,167.83,167.82,8.441e-05]
[1641322453283,58.32958,167.83,167.8,104.91998024]
[1641322453484,3.0,167.81,167.67,27.66479]
[1641322453685,3.0,167.8,167.67,27.66479]
[1641322453986,3.0,167.81,167.67,30.66479]
[1641322454385,10.62370215,167.82,167.69,3.0]
[1641322454585,10.62370215,167.82,167.72,3.0]
[1641322454785,10.62370215,167.82,167.74,27.66479]
[1641322454985,10.62370215,167.82,167.74,33.48779]
[1641322456087,3.0,167.85,167.74,33.48779]
[1641322456389,3.0,167.83,167.67,27.66479]
[1641322456688,27.66479,167.78,167.7,27.66479]
[1641322457387,27.66479,167.78,167.71,8.41291197]
[1641322458687,3.0,167.85,167.73,30.66479]
[1641322458887,27.66479,167.85,167.73,27.66479]
[1641322459490,3.0,167.83,167.73,27.66479]
[1641322459689,3.0,167.81,167.73,27.66479]
[1641322459889,3.0,167.81,167.74,8.41291197]
[1641322460694,27.66479,167.77,167.74,8.41291197]
[1641322461294,30.66479,167.77,167.74,8.41291197]
[1641322461493,30.66479,167.77,167.66,27.66479]
[1641322461494,30.66479,167.77,167.67,8.41291197]
[1641322461692,3.0,167.77,167.67,8.41291197]
[1641322462092,30.66479,167.79,167.67,8.41291197]
[1641322462294,10.62819948,167.78,167.67,4.198]
[1641322462894,13.62819948,167.78,167.67,4.198]
[1641322463094,3.0,167.77,167.67,4.198]
[1641322463297,3.0,167.77,167.66,27.66479]
[1641322464096,2.93764478,167.76,167.66,27.66479]
[1641322464296,2.93764478,167.76,167.64,63.4381]
[1641322464500,3.0,167.72,167.64,63.4381]
[1641322464701,3.0,167.71,167.56,61.1283]
[1641322464899,27.66479,167.67,167.58,27.66479]
[1641322465099,3.0,167.71,167.58,27.66479]
[1641322465699,5.93764478,167.7,167.58,27.66479]
[1641322465910,12.61164478,167.7,167.58,27.66479]
[1641322466101,3.0,167.68,167.58,27.66479]
[1641322466301,9.61164478,167.7,167.58,27.66479]
[1641322466503,3.0,167.64,167.58,27.66479]
[1641322466704,9.563,167.64,167.56,27.66479]
[1641322466906,27.66479,167.63,167.56,27.66479]
[1641322467504,27.66479,167.66,167.56,27.66479]
[1641322467703,27.66479,167.66,167.56,34.41879]
[1641322467903,13.56584426,167.62,167.56,34.41879]
[1641322468904,36.49667434,167.63,167.56,34.41879]
[1641322469105,36.49667434,167.63,167.56,27.66479]
[1641322469605,36.49667434,167.63,167.48,62.7987]
[1641322469806,4.413,167.63,167.48,62.7987]
[1641322470006,4.413,167.63,167.46,33.55902956]
[1641322470205,7.413,167.63,167.46,33.55902956]
[1641322470406,3.0,167.59,167.46,33.55902956]
[1641322470606,33.55902956,167.59,167.46,3.0]
[1641322470805,61.22381956,167.59,167.47,27.66479]
[1641322471208,64.22381956,167.59,167.47,27.66479]
[1641322471410,13.56584426,167.58,167.48,1.25415069]
[1641322471609,13.56584426,167.58,167.48,5.72815069]
[1641322472012,13.56584426,167.58,167.48,4.474]
[1641322472212,16.56584426,167.58,167.48,4.474]
[1641322472610,3.0,167.54,167.43,63.9211]
[1641322472811,27.66479,167.52,167.44,12.58879831]
[1641322473616,2.93764478,167.51,167.44,1.25397705]
[1641322474814,2.93764478,167.51,167.44,28.91876705]
[1641322475214,2.93764478,167.51,167.45,3.0]
[1641322475415,2.93764478,167.51,167.45,9.494]
[1641322475714,2.93764478,167.51,167.45,6.494]
[1641322476217,2.93764478,167.54,167.46,1.25397705]
[1641322477017,3.0,167.51,167.46,1.25397705]
[1641322477220,3.0,167.5,167.43,12.58879831]
[1641322477418,6.009,167.51,167.43,12.58879831]
[1641322477818,3.0,167.45,167.43,12.58879831]
[1641322478018,3.0,167.44,167.43,12.58879831]
[1641322478420,15.58879831,167.44,167.39,33.55902956]
[1641322478619,12.58879831,167.44,167.36,12.62417181]
[1641322478920,27.66479,167.38,167.36,12.62417181]
[1641322479520,27.66479,167.38,167.33,49.79729605]
[1641322479721,27.66479,167.41,167.33,6.15634049]
[1641322480220,27.66479,167.41,167.34,3.0]
[1641322480521,27.66479,167.41,167.33,6.15634049]
[1641322480920,27.66479,167.44,167.35,27.66479]
[1641322481121,27.66479,167.44,167.35,67.55881956]
[1641322481923,27.66479,167.44,167.37,33.55902956]
[1641322482222,3.0,167.38,167.37,33.55902956]
[1641322482424,6.211,167.38,167.32,50.3089736]
[1641322482823,6.211,167.38,167.35,27.66479]
[1641322483024,27.66479,167.44,167.35,27.66479]
[1641322483223,27.66479,167.44,167.35,32.99679]
[1641322483724,27.66479,167.46,167.35,32.99679]
[1641322483725,27.66479,167.46,167.35,35.99679]
[1641322484425,27.66479,167.46,167.36,3.0]
[1641322484625,50.3089736,167.48,167.36,3.0]
[1641322484825,27.66479,167.51,167.39,27.66479]
[1641322485025,27.66479,167.54,167.39,31.97779]
[1641322485425,27.66479,167.54,167.41,3.0]
[1641322485726,27.66479,167.54,167.42,3.0]
[1641322486026,27.66479,167.54,167.43,3.0]
[1641322486224,27.66479,167.54,167.44,3.0]
[1641322486426,53.3089736,167.6,167.44,3.0]
[1641322486625,50.3089736,167.6,167.44,3.0]
[1641322486827,27.66479,167.58,167.47,27.66479]
[1641322487026,27.66479,167.58,167.47,33.00279]
[1641322487225,27.66479,167.58,167.47,36.00279]
[1641322487627,27.66479,167.6,167.47,36.00279]
[1641322487928,27.66479,167.6,167.47,27.66479]
[1641322488326,27.66479,167.6,167.49,3.0]
[1641322488527,27.66479,167.6,167.47,30.66479]
[1641322488727,27.66479,167.6,167.47,27.66479]
[1641322488928,27.66479,167.57,167.45,30.66479]
[1641322489127,27.66479,167.57,167.46,3.0]
[1641322489330,27.66479,167.57,167.48,3.0]
[1641322489528,27.66479,167.6,167.48,3.0]
[1641322490028,23.76619466,167.7,167.57,3.0]
[1641322490230,23.76619466,167.7,167.57,4.636]
[1641322490430,122.7926,167.78,167.65,3.0]
[1641322490629,42.4581625,167.76,167.65,5.464]
[1641322490828,42.4581625,167.76,167.65,8.464]
[1641322491030,42.4581625,167.76,167.67,27.66479]
[1641322491229,42.4581625,167.76,167.67,30.66479]
[1641322491629,42.4581625,167.76,167.67,27.66479]
[1641322491831,42.4581625,167.76,167.72,3.0]
[1641322492030,104.80945313,167.81,167.72,5.745]
[1641322492230,173.28325313,167.87,167.72,5.745]
[1641322492431,104.80945313,167.87,167.72,5.745]
[1641322493031,27.66479,167.86,167.75,27.66479]
[1641322493531,104.80945313,167.87,167.75,27.66479]
[1641322493931,30.66479,167.88,167.75,27.66479]
[1641322494131,27.66479,167.88,167.75,27.66479]
[1641322494533,3.0,167.87,167.75,27.66479]
[1641322494933,27.66479,167.88,167.74,3.0]
[1641322495134,27.66479,167.88,167.71,27.66479]
[1641322495332,30.66479,167.88,167.71,31.66479]
[1641322495535,3.0,167.84,167.71,27.66479]
[1641322495733,6.314,167.84,167.71,27.66479]
[1641322495934,3.0,167.82,167.71,27.66479]
[1641322497035,30.66479,167.82,167.71,27.66479]
[1641322497536,27.66479,167.82,167.71,27.66479]
[1641322497736,3.0,167.81,167.71,27.66479]
[1641322497935,30.66479,167.82,167.71,27.66479]
[1641322498136,30.66479,167.82,167.71,32.68479]
[1641322498337,27.66479,167.82,167.71,32.68479]
[1641322498637,30.66479,167.82,167.71,32.68479]
[1641322499139,30.66479,167.82,167.71,60.34958]
[1641322499339,3.0,167.82,167.71,60.34958]
[1641322499840,15.12025334,167.87,167.71,60.34958]
[1641322500839,50.40279422,167.84,167.71,64.55040868]
[1641322501042,53.40279422,167.84,167.75,27.66479]
[1641322501441,53.40279422,167.84,167.75,32.77479]
[1641322501643,50.40279422,167.84,167.75,32.77479]
[1641322501844,50.40279422,167.86,167.75,32.77479]
[1641322502643,53.40279422,167.86,167.75,32.77479]
[1641322502843,3.0,167.85,167.75,32.77479]
[1641322503044,81.06758422,167.86,167.75,32.77479]
[1641322503244,50.40279422,167.86,167.75,32.77479]
[1641322503445,53.40279422,167.86,167.75,32.77479]
[1641322503645,50.40279422,167.86,167.75,32.77479]
[1641322503845,33.5987016,167.81,167.75,32.77479]
[1641322504045,33.5987016,167.81,167.75,27.66479]
[1641322505151,33.5987016,167.79,167.75,27.66479]
[1641322505845,50.40279422,167.84,167.75,27.66479]
[1641322506045,33.59804705,167.81,167.75,32.78579]
[1641322506245,7.04494705,167.81,167.77,4.0]
[1641322506445,7.04494705,167.81,167.75,32.78579]
[1641322507048,7.04494705,167.81,167.8,27.66479]
[1641322507249,53.40279422,167.86,167.8,32.16479]
[1641322507447,3.0,167.86,167.8,32.16479]
[1641322507646,3.0,167.84,167.8,32.16479]
[1641322507847,3.0,167.85,167.8,27.66479]
[1641322508046,50.40279422,167.89,167.8,27.66479]
[1641322508249,50.40279422,167.86,167.75,27.66479]
[1641322508447,3.0,167.84,167.75,27.66479]
[1641322508749,50.40279422,167.86,167.75,27.66479]
[1641322508947,3.0,167.83,167.75,31.99479]
[1641322509146,3.0,167.84,167.75,31.99479]
[1641322509548,50.40279422,167.85,167.75,31.99479]
[1641322509948,50.40279422,167.84,167.75,31.99479]
[1641322510147,50.40279422,167.84,167.75,27.66479]
[1641322510347,3.0,167.81,167.75,27.66479]
[1641322510749,50.40279422,167.84,167.75,27.66479]
[1641322511048,50.40279422,167.84,167.75,33.34279]
[1641322511253,53.40279422,167.84,167.75,33.34279]
[1641322511652,50.40279422,167.84,167.75,33.34279]
[1641322512251,12.60034843,167.77,167.75,33.34279]
[1641322512652,12.60034843,167.77,167.75,27.66479]
[1641322513954,3.0,167.82,167.75,27.66479]
[1641322514154,50.40279422,167.84,167.71,4.20082868]
[1641322514355,3.0,167.77,167.71,4.20082868]
[1641322514557,3.0,167.76,167.71,4.20082868]
[1641322514755,3.0,167.81,167.71,4.20082868]
[1641322514960,3.0,167.72,167.71,4.20082868]
[1641322515157,27.66479,167.73,167.71,4.20082868]
[1641322515358,3.0,167.72,167.69,4.20082868]
[1641322515560,3.0,167.7,167.69,4.20082868]
[1641322515758,3.0,167.7,167.69,0.05622868]
[1641322516357,3.0,167.7,167.62,27.66479]
[1641322516558,3.0,167.69,167.62,27.66479]
[1641322516758,8.273,167.69,167.62,27.66479]
[1641322516957,5.273,167.69,167.62,27.66479]
[1641322517161,3.0,167.67,167.62,27.66479]
[1641322517358,5.273,167.69,167.6,12.60067211]
[1641322517759,15.60816337,167.66,167.59,12.60067211]
[1641322518559,12.60816337,167.66,167.59,12.60067211]
[1641322518960,2.93774721,167.65,167.58,1.26482295]
[1641322519161,12.60816337,167.63,167.58,1.26482295]
[1641322519361,25.75592523,167.69,167.58,1.26482295]
[1641322519362,25.75592523,167.69,167.59,4.0]
[1641322519563,84.00465703,167.77,167.59,8.495]
[1641322519763,3.0,167.69,167.59,8.495]
[1641322519961,3.0,167.7,167.59,4.495]
[1641322520163,50.40279422,167.78,167.59,4.495]
[1641322520164,3.0,167.72,167.6,4.0]
[1641322520362,3.0,167.72,167.59,4.495]
[1641322520862,3.0,167.72,167.58,6.17760937]
[1641322521062,3.0,167.72,167.63,27.66479]
[1641322522163,10.63567189,167.73,167.63,27.66479]
[1641322522562,3.0,167.71,167.63,27.66479]
[1641322523762,3.0,167.7,167.63,27.66479]
[1641322524162,10.63567189,167.73,167.63,27.66479]
[1641322524364,3.0,167.67,167.63,27.66479]
[1641322524562,6.69,167.67,167.57,27.66479]
[1641322525262,6.69,167.67,167.6,27.66479]
[1641322525466,9.69,167.67,167.6,27.66479]
[1641322525763,6.69,167.67,167.6,27.66479]
[1641322526166,9.69,167.67,167.6,27.66479]
[1641322526365,6.69,167.67,167.6,27.66479]
[1641322526565,3.0,167.64,167.6,27.66479]
[1641322527865,44.2595496,167.69,167.6,27.66479]
[1641322528067,3.0,167.65,167.6,27.66479]
[1641322528270,3.0,167.64,167.6,27.66479]
[1641322528666,10.63567189,167.69,167.6,27.66479]
[1641322528867,3.0,167.63,167.6,27.66479]
[1641322529268,3.0,167.64,167.6,27.66479]
[1641322529667,3.0,167.63,167.6,27.66479]
[1641322529867,33.62387771,167.68,167.6,27.66479]
[1641322530067,3.0,167.61,167.6,27.66479]
[1641322530271,3.0,167.63,167.6,27.66479]
[1641322530671,36.62387771,167.68,167.6,27.66479]
[1641322530868,33.62387771,167.68,167.6,27.66479]
[1641322531070,3.0,167.65,167.6,27.66479]